bitfinex-derivatives/quotes_BTCF0:USTF0_20251229
["timestamp","ask_amount","ask_price","bid_price","bid_amount"]
[1766987583896,0.02518765,90035.0,90020.0,0.2503847]
[1766987584101,0.02518765,90034.0,90020.0,0.2503847]
[1766987584302,0.02518765,90033.0,90020.0,0.2503847]
[1766987584504,0.02518765,90032.0,90020.0,0.2503847]
[1766987584700,0.02518765,90031.0,90020.0,0.2503847]
[1766987584909,0.05576,90035.0,90020.0,0.2503847]
[1766987585107,0.02518748,90034.0,90020.0,0.2503847]
[1766987585308,0.02518748,90033.0,90020.0,0.2503847]
[1766987585507,0.02518748,90032.0,90020.0,0.2503847]
[1766987585710,0.02518748,90031.0,90020.0,0.2503847]
[1766987585906,0.05592661,90035.0,90020.0,0.2503847]
[1766987586109,0.02518735,90034.0,90020.0,0.2503847]
[1766987586407,0.02518735,90033.0,90020.0,0.2503847]
[1766987586610,0.02518735,90032.0,90020.0,0.2615049]
[1766987586905,0.02518735,90031.0,90020.0,0.2615049]
[1766987587107,0.05592661,90035.0,90020.0,0.2615049]
[1766987587307,0.02518753,90034.0,90020.0,0.2615049]
[1766987587507,0.02518753,90033.0,90020.0,0.2615049]
[1766987587699,0.05592661,90035.0,90020.0,0.2615049]
[1766987587700,0.02518753,90032.0,90020.0,0.2615049]
[1766987587900,0.02518753,90031.0,90020.0,0.2615049]
[1766987588100,0.05592661,90035.0,90020.0,0.2615049]
[1766987588401,0.025187,90034.0,90020.0,0.2615049]
[1766987588600,0.025187,90033.0,90020.0,0.2615049]
[1766987588802,0.05576,90037.0,90028.0,0.0111192]
[1766987589009,0.05572,90038.0,90028.0,0.0411192]
[1766987590712,0.03814,90040.0,90028.0,0.2615039]
[1766987590906,0.03814,90040.0,90028.0,0.03]
[1766987593814,0.00016661,90042.0,90028.0,0.03]
[1766987594004,0.05588661,90042.0,90028.0,0.03]
[1766987594200,0.00016661,90042.0,90028.0,0.03]
[1766987597218,0.01128421,90042.0,90028.0,0.03]
[1766987600422,0.0111179,90040.0,90028.0,0.03]
[1766987600916,0.02496564,90039.0,90028.0,0.03]
[1766987601118,0.02496564,90038.0,90028.0,0.03]
[1766987601318,0.02496564,90037.0,90028.0,0.03]
[1766987601520,0.00016661,90042.0,90028.0,0.03]
[1766987601711,0.02496519,90041.0,90028.0,0.03]
[1766987601907,0.02496519,90040.0,90028.0,0.03]
[1766987602119,0.00016661,90042.0,90028.0,0.03]
[1766987602415,0.02496495,90041.0,90028.0,0.03]
[1766987602724,0.02496495,90040.0,90028.0,0.03]
[1766987603021,0.00016661,90042.0,90028.0,0.03]
[1766987603220,0.011118,90039.0,90028.0,0.03]
[1766987603420,0.00016661,90042.0,90028.0,0.03]
[1766987603617,0.0249652,90041.0,90028.0,0.03]
[1766987603814,0.0249652,90040.0,90028.0,0.03]
[1766987604015,0.0249652,90039.0,90028.0,0.03]
[1766987604217,0.0111188,90032.0,90017.0,0.00016661]
[1766987604614,0.0111188,90032.0,90017.0,0.01016661]
[1766987605526,0.0668385,90035.0,90017.0,0.01016661]
[1766987608927,0.0111187,90033.0,90017.0,0.01016661]
[1766987610028,0.011119,90031.0,90017.0,0.01016661]
[1766987611721,0.0111186,90034.0,90017.0,0.01016661]
[1766987615932,0.05572,90035.0,90017.0,0.01016661]
[1766987616123,0.02521261,90034.0,90022.0,0.0111199]
[1766987616328,0.05572,90041.0,90022.0,0.0411199]
[1766987616528,0.0252129,90040.0,90024.0,0.0111197]
[1766987616838,0.0252129,90039.0,90024.0,0.0411197]
[1766987617038,0.0252129,90038.0,90024.0,0.03]
[1766987617337,0.0252129,90037.0,90024.0,0.03]
[1766987617529,0.0252129,90036.0,90024.0,0.03]
[1766987617728,0.09452,90041.0,90024.0,0.03]
[1766987617931,0.02521367,90040.0,90024.0,0.03]
[1766987618136,0.02521367,90039.0,90024.0,0.03]
[1766987618338,0.02521367,90038.0,90024.0,0.03]
[1766987618538,0.02521367,90037.0,90024.0,0.03]
[1766987618739,0.02521367,90036.0,90024.0,0.03]
[1766987618930,0.0111177,90041.0,90024.0,0.03]
[1766987619130,0.02521341,90040.0,90024.0,0.03]
[1766987619335,0.02521341,90039.0,90024.0,0.03]
[1766987619536,0.02521341,90038.0,90024.0,0.03]
[1766987619835,0.02521341,90037.0,90024.0,0.03]
[1766987620033,0.02521341,90036.0,90024.0,0.03]
[1766987620233,0.0111177,90041.0,90024.0,0.03]
[1766987620539,0.02521277,90040.0,90024.0,0.03]
[1766987620735,0.02521277,90039.0,90024.0,0.03]
[1766987620936,0.02521277,90038.0,90024.0,0.03]
[1766987621133,0.02521277,90037.0,90024.0,0.03]
[1766987621336,0.02521277,90036.0,90024.0,0.03]
[1766987621538,0.0111177,90041.0,90024.0,0.03]
[1766987621739,0.02521314,90040.0,90024.0,0.03]
[1766987621932,0.02521314,90039.0,90024.0,0.03]
[1766987622133,0.02521314,90038.0,90024.0,0.03]
[1766987622331,0.02521314,90037.0,90024.0,0.03]
[1766987622533,0.02521314,90036.0,90024.0,0.03]
[1766987622734,0.0111177,90041.0,90024.0,0.03]
[1766987623034,0.02521296,90040.0,90024.0,0.03]
[1766987623235,0.02521296,90039.0,90024.0,0.03]
[1766987623434,0.02521296,90038.0,90024.0,0.03]
[1766987623742,0.02521296,90037.0,90024.0,0.03]
[1766987623943,0.02521296,90036.0,90024.0,0.03]
[1766987624136,0.02521296,90035.0,90024.0,0.03]
[1766987624336,0.02521296,90034.0,90024.0,0.03]
[1766987624535,0.02521296,90033.0,90024.0,0.03]
[1766987624736,0.02521296,90032.0,90024.0,0.03]
[1766987624943,0.0111177,90041.0,90024.0,0.03]
[1766987625144,0.02521293,90040.0,90024.0,0.03]
[1766987625352,0.02521293,90039.0,90024.0,0.03]
[1766987625530,0.02521293,90038.0,90024.0,0.03]
[1766987625735,0.02521293,90037.0,90024.0,0.03]
[1766987625936,0.02521293,90036.0,90024.0,0.03]
[1766987626134,0.0111177,90041.0,90024.0,0.03]
[1766987626135,0.02521293,90035.0,90024.0,0.03]
[1766987626343,0.02521293,90034.0,90024.0,0.03]
[1766987626643,0.02521293,90033.0,90024.0,0.03]
[1766987626837,0.02521293,90032.0,90024.0,0.03]
[1766987627036,0.0111177,90041.0,90024.0,0.03]
[1766987627243,0.02543999,90040.0,90024.0,0.03]
[1766987627443,0.02543999,90039.0,90024.0,0.03]
[1766987627739,0.02543999,90038.0,90024.0,0.03]
[1766987627943,0.02543999,90037.0,90024.0,0.03]
[1766987628144,0.02543999,90036.0,90024.0,0.03]
[1766987628343,0.02543999,90035.0,90024.0,0.03]
[1766987628642,0.02543999,90034.0,90024.0,0.03]
[1766987628848,0.02543999,90033.0,90024.0,0.03]
[1766987629043,0.02543999,90032.0,90024.0,0.03]
[1766987629244,0.0668377,90041.0,90024.0,0.03]
[1766987629543,0.02544107,90040.0,90024.0,0.03]
[1766987629746,0.02544107,90039.0,90024.0,0.03]
[1766987629942,0.02544107,90038.0,90024.0,0.03]
[1766987630142,0.02544107,90037.0,90024.0,0.03]
[1766987630351,0.02544107,90036.0,90024.0,0.03]
[1766987630650,0.02544107,90035.0,90024.0,0.03]
[1766987630852,0.02544107,90034.0,90024.0,0.03]
[1766987631042,0.02544107,90033.0,90024.0,0.03]
[1766987631241,0.02544107,90032.0,90024.0,0.03]
[1766987631442,0.0668377,90041.0,90024.0,0.03]
[1766987631751,0.02543907,90040.0,90024.0,0.03]
[1766987631938,0.02543907,90039.0,90024.0,0.03]
[1766987632144,0.02543907,90038.0,90024.0,0.03]
[1766987632351,0.02543907,90037.0,90024.0,0.03]
[1766987632553,0.02543907,90036.0,90024.0,0.03]
[1766987632850,0.02543907,90035.0,90024.0,0.03]
[1766987633053,0.02543907,90034.0,90024.0,0.03]
[1766987633253,0.02543907,90033.0,90024.0,0.03]
[1766987633554,0.02543907,90032.0,90024.0,0.03]
[1766987633742,0.011118,90039.0,90024.0,0.03]
[1766987633943,0.02544056,90038.0,90024.0,0.03]
[1766987634154,0.02544056,90037.0,90024.0,0.03]
[1766987634353,0.02544056,90036.0,90025.0,0.0111]
[1766987634654,0.02544056,90035.0,90025.0,0.0411]
[1766987634847,0.02544056,90034.0,90025.0,0.0411]
[1766987635055,0.011118,90039.0,90025.0,0.0411]
[1766987635249,0.02549038,90038.0,90025.0,0.0411]
[1766987635454,0.02549038,90037.0,90025.0,0.0411]
[1766987635649,0.02549038,90036.0,90025.0,0.0411]
[1766987635851,0.02549038,90035.0,90025.0,0.0411]
[1766987636151,0.02549038,90034.0,90025.0,0.0411]
[1766987636350,0.011118,90039.0,90025.0,0.0411]
[1766987636545,0.02549069,90038.0,90025.0,0.0411]
[1766987636746,0.03660889,90037.0,90025.0,0.0411]
[1766987636946,0.02549069,90036.0,90025.0,0.0411]
[1766987637150,0.02549069,90035.0,90025.0,0.0411]
[1766987637351,0.02549069,90034.0,90025.0,0.0411]
[1766987637553,0.0254904,90033.0,90025.0,0.0411]
[1766987637842,0.0111182,90037.0,90025.0,0.0411]
[1766987638049,0.02549081,90036.0,90025.0,0.0411]
[1766987638253,0.02549081,90035.0,90025.0,0.0411]
[1766987638456,0.02549081,90034.0,90025.0,0.0411]
[1766987638646,0.02549081,90033.0,90025.0,0.0411]
[1766987638847,0.0111182,90037.0,90025.0,0.0411]
[1766987639057,0.02549068,90036.0,90025.0,0.0411]
[1766987639257,0.02549068,90035.0,90025.0,0.0411]
[1766987639557,0.0111182,90037.0,90025.0,0.0411]
[1766987639558,0.02549068,90034.0,90025.0,0.0411]
[1766987639751,0.02549068,90033.0,90025.0,0.0411]
[1766987639950,0.0111182,90037.0,90025.0,0.0411]
[1766987640258,0.0254906,90036.0,90025.0,0.0411]
[1766987640457,0.0254906,90035.0,90025.0,0.0411]
[1766987640658,0.0254906,90034.0,90025.0,0.0411]
[1766987640854,0.0254906,90033.0,90025.0,0.0411]
[1766987641157,0.0111182,90037.0,90025.0,0.0411]
[1766987641358,0.02549542,90036.0,90025.0,0.0411]
[1766987641560,0.02549542,90035.0,90025.0,0.0411]
[1766987641759,0.02549542,90034.0,90025.0,0.0411]
[1766987642059,0.02549542,90033.0,90025.0,0.0411]
[1766987642361,0.0111205,90019.0,90003.0,0.05568]
[1766987642653,0.0111205,90019.0,90003.0,0.06568]
[1766987643260,0.05568,90025.0,90003.0,0.06568]
[1766987643261,0.00016661,90020.0,90003.0,0.06568]
[1766987645662,0.02615355,90019.0,89976.0,0.0111257]
[1766987645861,0.08187355,90018.0,89977.0,0.15024]
[1766987646057,0.08187355,90017.0,89998.0,0.011123]
[1766987646254,0.00016661,90020.0,90001.0,0.0111226]
[1766987646454,0.01283931,90063.0,90001.0,0.03]
[1766987646455,0.0111176,90042.0,90001.0,0.03]
[1766987646654,0.17649813,90041.0,90006.0,0.0111219]
[1766987646858,0.02615682,90040.0,90007.0,0.15028]
[1766987647062,0.02615682,90039.0,90008.0,0.05576]
[1766987647268,0.02615682,90038.0,90008.0,0.18028]
[1766987647463,0.0111201,90022.0,90014.0,0.00016661]
[1766987647664,0.0111204,90019.0,90014.0,1e-08]
[1766987647864,0.15028,90029.0,90014.0,1e-08]
[1766987647865,0.00012527,90018.0,90014.0,1e-08]
[1766987652265,0.00012527,90018.0,90003.0,0.09452]
[1766987652470,0.00012527,90018.0,90004.0,0.0111222]
[1766987652667,0.00012527,90018.0,90004.0,0.0411222]
[1766987653557,0.00012527,90018.0,90004.0,0.03]
[1766987655472,0.0111207,90017.0,90004.0,0.03]
[1766987656068,0.01124587,90018.0,90004.0,0.03]
[1766987659377,0.00012527,90018.0,90004.0,0.03]
[1766987661887,0.00222167,90023.0,90004.0,0.03]
[1766987662681,0.22034785,90020.0,90004.0,0.0411221]
[1766987663378,0.22034785,90020.0,90008.0,0.0111217]
[1766987663580,0.22034785,90020.0,90008.0,0.0411217]
[1766987664673,0.00222167,90023.0,90008.0,0.0411217]
[1766987666074,0.00222167,90023.0,90010.0,0.0111214]
[1766987666276,0.00222167,90023.0,90010.0,0.0411214]
[1766987666671,0.22034785,90020.0,90007.0,0.0111218]
[1766987666878,0.22034785,90020.0,90007.0,0.0211218]
[1766987667769,0.22034785,90020.0,90010.0,0.0111214]
[1766987667966,0.22034785,90020.0,90010.0,0.0411214]
[1766987671174,0.00222167,90023.0,90010.0,0.03]
[1766987671384,0.03437247,90022.0,90010.0,0.03]
[1766987671683,0.02613244,90021.0,90010.0,0.03]
[1766987671870,4e-08,90020.0,90016.0,0.0111207]
[1766987672076,4e-08,90020.0,90016.0,0.0411207]
[1766987675081,4e-08,90020.0,89980.0,0.07978293]
[1766987675384,0.00016661,90009.0,89980.0,0.03]
[1766987675574,0.15036,90008.0,89964.0,0.1615272]
[1766987675775,0.22034785,90000.0,89979.0,0.0111252]
[1766987675985,0.05592,89999.0,89979.0,0.0411252]
[1766987676285,0.15044,89998.0,89979.0,0.03]
[1766987676581,0.00011012,89998.0,89980.0,0.0111251]
[1766987676888,0.05592,89997.0,89980.0,0.03]
[1766987677087,0.05592,89997.0,89981.0,0.0111251]
[1766987677393,0.05592,89997.0,89981.0,0.0411251]
[1766987678177,0.05592,89997.0,89981.0,0.16230403]
[1766987679487,0.05592,89996.0,89981.0,0.15117893]
[1766987682088,0.0111234,89995.0,89981.0,0.15113893]
[1766987682388,0.0111234,89995.0,89981.0,0.15109893]
[1766987683582,0.0111234,89995.0,89981.0,0.02992]
[1766987684088,0.0111234,89995.0,89984.0,0.12117893]
[1766987684284,0.05592,89996.0,89984.0,0.15109893]
[1766987684479,0.05592,90003.0,89989.0,0.12117893]
[1766987684679,0.05592,90003.0,89989.0,0.02992]
[1766987684891,0.05592,90005.0,89995.0,0.12117893]
[1766987685088,0.05592,90005.0,89995.0,0.15109893]
[1766987685288,0.0670422,90005.0,89995.0,0.15109893]
[1766987685674,0.09468661,90009.0,89995.0,0.15109893]
[1766987685675,0.00016661,90009.0,89995.0,0.15109893]
[1766987685881,0.05592,90011.0,89999.0,0.34152678]
[1766987686076,0.05592,90013.0,89999.0,0.03]
[1766987686282,0.09456,90017.0,90003.0,0.12117893]
[1766987686481,0.09456,90017.0,90003.0,0.15117893]
[1766987686682,0.09456,90017.0,90003.0,0.03]
[1766987687389,0.0111212,90013.0,90003.0,0.03]
[1766987687894,0.0111212,90013.0,90005.0,0.12117893]
[1766987688092,0.0111212,90013.0,90005.0,0.15117893]
[1766987689390,0.0111212,90013.0,90005.0,0.03]
[1766987689591,0.0111212,90013.0,90005.0,0.015]
[1766987690290,0.1056807,90017.0,90005.0,0.015]
[1766987690691,0.011121,90015.0,90005.0,0.015]
[1766987691089,0.0111212,90013.0,90005.0,0.015]
[1766987691990,0.0111215,90011.0,90005.0,0.015]
[1766987693498,0.011121,90014.0,90005.0,0.015]
[1766987694197,0.00016661,90019.0,90005.0,0.015]
[1766987694499,0.05588,90020.0,90005.0,0.015]
[1766987695200,0.0670004,90020.0,90005.0,0.015]
[1766987697293,0.05588,90020.0,90005.0,0.015]
[1766987697799,0.00016661,90022.0,90005.0,0.015]
[1766987697800,0.00016661,90022.0,90010.0,0.22034785]
[1766987698000,0.09452,90027.0,90010.0,0.25034785]
[1766987700302,0.09452,90027.0,90010.0,0.03]
[1766987700502,0.22034785,90020.0,90010.0,0.03]
[1766987701006,0.0111202,90021.0,90010.0,0.03]
[1766987701502,0.00016661,90028.0,90010.0,0.25034785]
[1766987701808,0.04088,90028.0,90011.0,0.0111214]
[1766987701998,0.0111187,90033.0,90018.0,0.22034785]
[1766987702200,0.00222093,90053.0,90027.0,0.0111193]
[1766987702397,0.0111153,90061.0,90040.0,0.22034785]
[1766987702704,0.00016661,90060.0,90041.0,0.15056661]
[1766987702905,0.00016661,90060.0,90041.0,0.18056661]
[1766987703201,0.00016661,90060.0,90045.0,0.0111171]
[1766987703401,0.00016661,90060.0,90045.0,0.0411171]
[1766987703598,0.00016661,90060.0,90045.0,0.03]
[1766987704305,0.0111154,90059.0,90045.0,0.03]
[1766987705202,0.0111154,90059.0,90046.0,0.05588]
[1766987705403,0.00016661,90060.0,90046.0,0.08588]
[1766987705602,0.0669944,90068.0,90046.0,0.08588]
[1766987705908,0.0111148,90065.0,90046.0,0.08588]
[1766987706499,0.05588,90068.0,90046.0,0.08588]
[1766987706700,0.00016661,90065.0,90046.0,0.08588]
[1766987707799,0.01128141,90065.0,90046.0,0.08588]
[1766987708011,0.00016661,90065.0,90047.0,0.1504]
[1766987708201,0.22034785,90060.0,90048.0,0.05588]
[1766987708406,0.22034785,90060.0,90048.0,0.08588]
[1766987709413,0.0111149,90064.0,90048.0,0.08588]
[1766987710607,0.00016661,90065.0,90048.0,0.08588]
[1766987713117,0.0111149,90064.0,90048.0,0.08588]
[1766987714118,0.0111149,90064.0,90048.0,0.03]
[1766987714416,0.0111149,90064.0,90049.0,0.03552]
[1766987714607,0.22034785,90060.0,90049.0,0.06552]
[1766987715514,0.22034785,90060.0,90049.0,0.03]
[1766987715815,0.22034785,90060.0,90049.0,0.02]
[1766987716414,0.0111161,90054.0,90049.0,9e-08]
[1766987716622,0.0111161,90054.0,90044.0,0.05584]
[1766987716913,0.23146395,90054.0,90044.0,0.06584]
[1766987719017,0.0111164,90052.0,90044.0,0.06584]
[1766987721319,0.0111169,90048.0,90041.0,0.15048661]
[1766987721511,0.0111169,90048.0,90041.0,0.18048661]
[1766987722415,0.0111172,90046.0,90041.0,0.05584001]
[1766987722617,0.0111172,90046.0,90041.0,0.03000001]
[1766987725317,0.0111172,90046.0,90041.0,1e-08]
[1766987726123,0.15032,90060.0,90041.0,1e-08]
[1766987726325,0.02581825,90059.0,90041.0,1e-08]
[1766987726523,0.02581825,90058.0,90041.0,1e-08]
[1766987726728,0.15032,90060.0,90041.0,1e-08]
[1766987727024,0.02583105,90059.0,90041.0,1e-08]
[1766987727213,0.02583105,90058.0,90041.0,1e-08]
[1766987727410,0.02583105,90057.0,90041.0,1e-08]
[1766987727618,0.02583105,90056.0,90041.0,1e-08]
[1766987727818,0.15032,90060.0,90041.0,1e-08]
[1766987728024,0.0111169,90048.0,90041.0,1e-08]
[1766987728519,0.0111161,90054.0,90041.0,1e-08]
[1766987729320,0.02587498,90053.0,90041.0,1e-08]
[1766987729526,0.0111161,90054.0,90041.0,1e-08]
[1766987729827,0.02587498,90053.0,90041.0,1e-08]
[1766987730027,0.0111161,90054.0,90041.0,1e-08]
[1766987730324,0.02587498,90053.0,90041.0,1e-08]
[1766987730518,0.0111161,90054.0,90041.0,1e-08]
[1766987730717,0.02587617,90053.0,90041.0,1e-08]
[1766987730917,0.0111161,90054.0,90041.0,1e-08]
[1766987731120,0.02587617,90053.0,90041.0,1e-08]
[1766987731324,0.02587617,90052.0,90041.0,1e-08]
[1766987731524,0.02587617,90051.0,90041.0,1e-08]
[1766987731724,0.02587617,90050.0,90041.0,1e-08]
[1766987732029,0.02587617,90049.0,90041.0,1e-08]
[1766987732224,0.0259206,90048.0,90041.0,1e-08]
[1766987732424,0.15032,90060.0,90041.0,1e-08]
[1766987732425,0.0259206,90047.0,90041.0,1e-08]
[1766987732722,0.0111166,90050.0,90041.0,1e-08]
[1766987732924,0.0111168,90048.0,90041.0,1e-08]
[1766987733122,0.02592036,90047.0,90041.0,1e-08]
[1766987733427,0.0111164,90052.0,90041.0,1e-08]
[1766987733634,0.02592132,90051.0,90041.0,1e-08]
[1766987733927,0.02592132,90050.0,90041.0,1e-08]
[1766987734128,0.02592132,90049.0,90041.0,1e-08]
[1766987734327,0.02592132,90048.0,90041.0,1e-08]
[1766987734628,0.02592132,90047.0,90041.0,1e-08]
[1766987734812,0.0111164,90052.0,90041.0,1e-08]
[1766987735017,0.02592206,90051.0,90041.0,1e-08]
[1766987735214,0.02592206,90050.0,90041.0,1e-08]
[1766987735421,0.02592206,90049.0,90041.0,1e-08]
[1766987735620,0.02592206,90048.0,90041.0,1e-08]
[1766987735829,0.02592206,90047.0,90041.0,1e-08]
[1766987736127,0.0111164,90052.0,90041.0,1e-08]
[1766987736320,0.02591422,90051.0,90041.0,1e-08]
[1766987736524,0.02591422,90050.0,90041.0,1e-08]
[1766987736720,0.02591422,90049.0,90041.0,1e-08]
[1766987737014,0.02591422,90048.0,90041.0,1e-08]
[1766987737331,0.0111164,90052.0,90041.0,1e-08]
[1766987737529,0.02591546,90051.0,90041.0,1e-08]
[1766987737828,0.02591546,90050.0,90041.0,1e-08]
[1766987738033,0.02591546,90049.0,90041.0,1e-08]
[1766987738323,0.02591546,90048.0,90041.0,1e-08]
[1766987738530,0.0111164,90052.0,90041.0,1e-08]
[1766987738834,0.02591572,90051.0,90041.0,1e-08]
[1766987739033,2e-08,90050.0,90041.0,1e-08]
[1766987739329,0.00016661,90065.0,90041.0,1e-08]
[1766987739330,0.0558,90061.0,90046.0,0.011117]
[1766987739527,0.0558,90061.0,90046.0,0.041117]
[1766987739829,0.05596661,90065.0,90046.0,0.041117]
[1766987740623,0.05596661,90065.0,90048.0,0.0111167]
[1766987740822,0.05596661,90065.0,90048.0,0.0411167]
[1766987742423,0.05596661,90065.0,90051.0,0.0111163]
[1766987742633,0.05596661,90065.0,90051.0,0.0411163]
[1766987742832,0.05596661,90065.0,90053.0,0.0111161]
[1766987743130,0.05596661,90065.0,90053.0,0.0411161]
[1766987746532,0.05596661,90065.0,90055.0,0.0111158]
[1766987746734,0.05596661,90065.0,90055.0,0.0411158]
[1766987749340,0.05596661,90065.0,90055.0,0.03]
[1766987751338,0.02514682,90064.0,90055.0,0.03]
[1766987751636,0.02514682,90063.0,90055.0,0.03]
[1766987751837,0.02514682,90062.0,90055.0,0.03]
[1766987752028,0.02514682,90061.0,90055.0,0.03]
[1766987752231,0.00016661,90065.0,90055.0,0.03]
[1766987752427,0.0558,90072.0,90055.0,0.03]
[1766987752631,0.09448,90076.0,90055.0,0.0411158]
[1766987752632,0.0558,90074.0,90055.0,0.0411158]
[1766987752828,0.09448,90081.0,90059.0,0.0111153]
[1766987753141,0.09448,90081.0,90061.0,0.0111151]
[1766987753434,0.00016661,90080.0,90062.0,0.00016661]
[1766987753643,0.00016661,90080.0,90062.0,0.03016661]
[1766987753832,0.011113,90079.0,90062.0,0.03016661]
[1766987756131,0.0111134,90076.0,90062.0,0.03016661]
[1766987757435,0.00016661,90080.0,90062.0,0.03016661]
[1766987760250,0.011113,90079.0,90062.0,0.03016661]
[1766987760450,0.00016661,90080.0,90062.0,0.03016661]
[1766987761744,0.00016661,90080.0,90062.0,0.04128161]
[1766987763343,0.00016661,90080.0,90064.0,0.0111147]
[1766987763544,0.00016661,90080.0,90064.0,0.0411147]
[1766987765436,0.00016661,90080.0,90067.0,0.0111144]
[1766987765636,0.00016661,90080.0,90067.0,0.0411144]
[1766987766335,0.00016661,90080.0,90070.0,0.0111141]
[1766987766535,0.00016661,90080.0,90070.0,0.0411141]
[1766987768352,0.02497362,90079.0,90070.0,0.0411141]
[1766987768546,0.00016661,90080.0,90070.0,0.0411141]
[1766987768748,0.02497365,90079.0,90070.0,0.0411141]
[1766987768949,0.00016661,90080.0,90070.0,0.0411141]
[1766987769151,0.02497362,90079.0,90070.0,0.0411141]
[1766987769353,0.00016661,90080.0,90070.0,0.0411141]
[1766987769649,0.00016661,90080.0,90062.0,0.00016661]
[1766987769650,0.02497392,90079.0,90062.0,0.00016661]
[1766987769842,0.11945392,90078.0,90062.0,0.04128161]
[1766987770042,0.02497392,90077.0,90062.0,0.04128161]
[1766987771046,0.02497392,90077.0,90068.0,0.0111143]
[1766987771353,0.09448,90077.0,90071.0,0.0111139]
[1766987771654,0.09448,90077.0,90062.0,0.00016661]
[1766987771655,0.09448,90077.0,90067.0,0.0111144]
[1766987771856,0.09448,90077.0,90067.0,0.0411144]
[1766987773340,0.09448,90077.0,90067.0,0.03]
[1766987775854,0.05576,90076.0,90067.0,0.03]
[1766987778653,0.0111133,90076.0,90067.0,0.01]
[1766987778952,0.05572,90075.0,90067.0,0.01]
[1766987780359,0.01127951,90080.0,90067.0,0.01]
[1766987780561,0.17571946,90079.0,90067.0,0.01]
[1766987780758,0.08123946,90078.0,90067.0,0.01]
[1766987781061,0.02551946,90077.0,90067.0,0.01]
[1766987781261,0.02551946,90076.0,90067.0,0.01]
[1766987781463,0.02551946,90075.0,90067.0,0.01]
[1766987781664,0.01051946,90074.0,90067.0,0.01]
[1766987781961,0.05572,90076.0,90067.0,0.01]
[1766987785766,0.0111132,90078.0,90067.0,0.01]
[1766987785967,0.05572,90077.0,90067.0,0.01]
[1766987786169,0.0111132,90078.0,90067.0,0.01]
[1766987786463,0.05572,90077.0,90067.0,0.01]
[1766987786658,0.0111132,90078.0,90067.0,0.01]
[1766987786862,0.05572,90077.0,90067.0,0.01]
[1766987790268,0.0111132,90078.0,90067.0,0.01]
[1766987790467,0.05572,90076.0,90067.0,0.01]
[1766987793872,0.02603933,90075.0,90067.0,0.01]
[1766987794070,0.02603933,90074.0,90067.0,0.01]
[1766987794270,0.02603933,90073.0,90067.0,0.01]
[1766987794461,0.02603933,90072.0,90067.0,0.01]
[1766987794661,0.02603933,90071.0,90067.0,0.01]
[1766987794862,3e-08,90070.0,90067.0,0.01]
[1766987795071,0.05572,90076.0,90067.0,0.01]
[1766987795570,0.05572,90076.0,90067.0,0.0211144]
[1766987799174,0.05572,90076.0,90062.0,0.00016661]
[1766987799376,0.05572,90076.0,90067.0,0.0111144]
[1766987799676,0.05572,90076.0,90067.0,0.01]
[1766987800674,0.05572,90076.0,90066.0,0.0111145]
[1766987800868,0.05572,90076.0,90066.0,0.0411145]
[1766987801577,0.05572,90076.0,90066.0,0.01]
[1766987801767,0.05572,90076.0,90069.0,0.0111142]
[1766987802075,0.05572,90076.0,90069.0,0.0411142]
[1766987802575,0.05572,90076.0,90069.0,0.03]
[1766987803775,0.05572,90075.0,90070.0,0.0111141]
[1766987803976,0.05572,90076.0,90070.0,0.03]
[1766987804178,0.05572,90076.0,90070.0,0.0411141]
[1766987804566,0.05572,90076.0,90062.0,0.00016661]
[1766987804767,0.05572,90076.0,90062.0,0.01016661]
[1766987805678,0.05572,90076.0,90071.0,0.011114]
[1766987805878,0.05572,90076.0,90071.0,0.041114]
[1766987806176,0.05572,90076.0,90071.0,0.03]
[1766987806366,0.05572,90076.0,90071.0,0.01]
[1766987806562,0.05572,90076.0,90071.0,0.03]
[1766987806975,0.02601153,90075.0,90071.0,0.03]
[1766987807176,0.02601153,90074.0,90071.0,0.03]
[1766987807374,3e-08,90073.0,90071.0,0.03]
[1766987807577,0.05572,90075.0,90071.0,0.0411138]
[1766987808477,0.05572,90075.0,90071.0,0.01]
[1766987808676,0.00016661,90080.0,90071.0,0.0211139]
[1766987808868,0.05572,90079.0,90073.0,0.0111136]
[1766987809068,0.00016661,90080.0,90073.0,0.0111136]
[1766987809470,0.05572,90079.0,90073.0,0.0111136]
[1766987809672,0.00016661,90080.0,90073.0,0.0111136]
[1766987809877,0.05572,90079.0,90073.0,0.0111136]
[1766987813075,0.00016661,90080.0,90073.0,0.0111136]
[1766987813278,0.05572,90079.0,90073.0,0.0111136]
[1766987813476,0.22005373,90090.0,90073.0,0.0111136]
[1766987813775,0.05572,90082.0,90062.0,0.00016661]
[1766987813979,0.05572,90082.0,90062.0,0.03016661]
[1766987814181,0.00011027,90081.0,90062.0,0.03016661]
[1766987815276,0.00011027,90081.0,90072.0,0.0111138]
[1766987815481,0.00011027,90081.0,90072.0,0.0411138]
[1766987817768,0.05572,90080.0,90072.0,0.0411138]
[1766987818176,0.05572,90080.0,90074.0,0.0111135]
[1766987818483,0.05572,90080.0,90074.0,0.0411135]
[1766987818869,0.05572,90080.0,90074.0,0.02]
[1766987819277,0.05572,90080.0,90074.0,0.0311135]
[1766987819475,0.02589404,90079.0,90074.0,0.0311135]
[1766987819680,0.02589404,90078.0,90074.0,0.0311135]
[1766987819876,4e-08,90077.0,90074.0,0.0311135]
[1766987820081,0.05572,90080.0,90074.0,0.02]
[1766987820780,0.05572,90079.0,90074.0,0.02]
[1766987823681,0.00011027,90081.0,90074.0,0.02]
[1766987823881,1.9e-07,90083.0,90075.0,0.0111135]
[1766987824075,1.9e-07,90083.0,90075.0,0.0411135]
[1766987824581,1.9e-07,90083.0,90075.0,0.03]
[1766987833884,1.9e-07,90083.0,90080.0,0.0111128]
[1766987834079,0.15016,90108.0,90082.0,0.0111126]
[1766987834284,0.01111,90104.0,90086.0,0.00016649]
[1766987834484,0.02544972,90103.0,90086.0,0.03016649]
[1766987834688,0.02544972,90102.0,90086.0,0.03016649]
[1766987834889,0.02544972,90101.0,90086.0,0.03016649]
[1766987835189,0.0111105,90099.0,90086.0,0.03016649]
[1766987835391,0.0111102,90102.0,90086.0,0.03016649]